[Event "Fast Chess"]
[Site "ChessKid.com"]
[Date "2020.05.11"]
[Round "1"]
[White "Li, Patrick"]
[Black "Horvath, Alexander"]
[Result "1-0"]
[ECO "A00"]
[WhiteElo "1223"]
[BlackElo "1318"]
[Annotator "Springergabel"]
[PlyCount "93"]
[EventDate "2020.??.??"]
[TimeControl "600"]
[WhiteClock "0:07:56"]
[BlackClock "0:07:10"]

1. e4 {[%emt 0:00:02]} e5 {[%emt 0:00:02]} 2. Nf3 {[%emt 0:00:01]} Nf6 {
[%emt 0:00:01]} 3. Nxe5 {[%emt 0:00:04]} d6 {[%emt 0:00:04]} 4. Nf3 {[%emt 0:
00:01]} Nxe4 {[%emt 0:00:06]} 5. Qe2 {[%emt 0:00:01]} Qe7 {[%emt 0:00:02]} 6.
d3 {[%emt 0:00:04]} Nf6 {[%emt 0:00:04]} 7. Bd2 {[%emt 0:00:07]} Nc6 {[%emt 0:
00:02]} 8. Bg5 {[%emt 0:00:02]} h6 {[%emt 0:00:06]} 9. Bxf6 {[%emt 0:00:02]}
gxf6 {[%emt 0:00:00]} 10. Nc3 {[%emt 0:00:04]} Bd7 {[%emt 0:00:03]} 11. Nd5 {
[%emt 0:00:01]} Qe6 $4 {[%emt 0:00:04]} 12. Nxc7+ {[%emt 0:00:03]} Kd8 {
[%emt 0:00:00]} 13. Nxe6+ {[%emt 0:00:02]} Kc8 {[%emt 0:00:05]} 14. Nxf8 {
[%emt 0:00:05]} Rxf8 {[%emt 0:00:03]} 15. Qd2 {[%emt 0:00:07]} Re8+ {[%emt 0:
00:02]} 16. Be2 {[%emt 0:00:05]} Bg4 {[%emt 0:00:02]} 17. O-O {[%emt 0:00:06]}
Bxf3 {[%emt 0:00:03]} 18. Bxf3 {[%emt 0:00:04]} Kc7 {[%emt 0:00:03]} 19. Rfe1 {
[%emt 0:00:04]} Rxe1+ {[%emt 0:00:05]} 20. Rxe1 {[%emt 0:00:05]} Nd4 {[%emt 0:
00:01]} 21. Re4 {[%emt 0:00:06]} Nxf3+ {[%emt 0:00:02]} 22. gxf3 {[%emt 0:00:
01]} Rg8+ {[%emt 0:00:02]} 23. Kf1 {[%emt 0:00:04]} h5 {[%emt 0:00:04]} 24. Qh6
{[%emt 0:00:04]} f5 {[%emt 0:00:02]} 25. Rf4 {[%emt 0:00:07]} Rg6 {[%emt 0:00:
04]} 26. Qxh5 {[%emt 0:00:03]} Kc6 {[%emt 0:00:03]} 27. Qxf5 {[%emt 0:00:02]}
Rh6 {[%emt 0:00:04]} 28. Qxf7 {[%emt 0:00:02]} Rxh2 {[%emt 0:00:01]} 29. Kg1 {
[%emt 0:00:08]} Rh8 {[%emt 0:00:09]} 30. Qg7 {[%emt 0:00:03]} Re8 {[%emt 0:00:
04]} 31. Qg6 {[%emt 0:00:03]} Re1+ {[%emt 0:00:02]} 32. Kg2 {[%emt 0:00:03]}
Re2 {[%emt 0:00:03]} 33. Qh5 {[%emt 0:00:07]} Rxc2 {[%emt 0:00:03]} 34. Rc4+ {
[%emt 0:00:05]} Rxc4 {[%emt 0:00:03]} 35. dxc4 {[%emt 0:00:01]} a6 {[%emt 0:00:
02]} 36. Qd5+ {[%emt 0:00:08]} Kd7 {[%emt 0:00:02]} 37. Qxb7+ {[%emt 0:00:02]}
Ke6 {[%emt 0:00:02]} 38. Qxa6 {[%emt 0:00:01]} Ke5 {[%emt 0:00:01]} 39. b4 {
[%emt 0:00:03]} Kd4 {[%emt 0:00:02]} 40. b5 {[%emt 0:00:01]} d5 {[%emt 0:00:02]
} 41. b6 {[%emt 0:00:01]} dxc4 {[%emt 0:00:02]} 42. b7 {[%emt 0:00:02]} c3 {
[%emt 0:00:01]} 43. b8=Q {[%emt 0:00:02]} c2 {[%emt 0:00:00]} 44. Qb2+ {
[%emt 0:00:06]} Kc5 {[%emt 0:00:04]} 45. Qxc2+ {[%emt 0:00:04]} Kb4 {[%emt 0:
00:02]} 46. Qb6+ {[%emt 0:00:02]} Ka3 {[%emt 0:00:02]} 47. Qbb3# {[%emt 0:00:
09] WideClassyQuiz won by checkmate} 1-0

[Event "Fast Chess"]
[Site "ChessKid.com"]
[Date "2020.05.11"]
[Round "2"]
[White "Halimi, Dorian"]
[Black "Georgiev, Maximilian"]
[Result "0-1"]
[ECO "C20"]
[WhiteElo "1247"]
[BlackElo "1117"]
[Annotator "Turmendspiel, Ablenkung Verteidiger"]
[PlyCount "142"]
[EventDate "2020.??.??"]
[TimeControl "600"]
[WhiteClock "0:06:37"]
[BlackClock "0:06:02"]

1. e4 {[%emt 0:00:02]} e5 {[%emt 0:00:01]} 2. Qh5 {[%emt 0:00:02]} Nc6 {
[%emt 0:00:02]} 3. Bc4 {[%emt 0:00:01]} g6 {[%emt 0:00:01]} 4. Qf3 {[%emt 0:00:
01]} Nf6 {[%emt 0:00:01]} 5. Nh3 {[%emt 0:00:01]} h6 {[%emt 0:00:04]} 6. Nc3 {
[%emt 0:00:05]} Nd4 {[%emt 0:00:01]} 7. Qd3 {[%emt 0:00:10]} Nc6 {[%emt 0:00:
08]} 8. Nd5 {[%emt 0:00:07]} Nxd5 {[%emt 0:00:04]} 9. Bxd5 {[%emt 0:00:01]} Nb4
{[%emt 0:00:03]} 10. Qc3 {[%emt 0:00:08]} Nxd5 {[%emt 0:00:03]} 11. exd5 {
[%emt 0:00:03]} c6 {[%emt 0:00:04]} 12. Qxe5+ {[%emt 0:00:06]} Qe7 {[%emt 0:00:
03]} 13. Qxe7+ {[%emt 0:00:07]} Bxe7 {[%emt 0:00:02]} 14. dxc6 {[%emt 0:00:00]}
dxc6 {[%emt 0:00:02]} 15. O-O {[%emt 0:00:02]} Bxh3 {[%emt 0:00:02]} 16. gxh3 {
[%emt 0:00:01]} O-O {[%emt 0:00:01]} 17. d3 {[%emt 0:00:02]} Kh7 {[%emt 0:00:
04]} 18. Kg2 {[%emt 0:00:04]} Rad8 {[%emt 0:00:02]} 19. Be3 {[%emt 0:00:03]} a6
{[%emt 0:00:02]} 20. Bb6 {[%emt 0:00:02]} Rd5 {[%emt 0:00:04]} 21. Rfe1 {
[%emt 0:00:04]} Rg5+ {[%emt 0:00:03]} 22. Kf3 {[%emt 0:00:02]} Bd8 {[%emt 0:00:
03]} 23. Bxd8 {[%emt 0:00:07]} Rxd8 {[%emt 0:00:02]} 24. a4 {[%emt 0:00:04]}
Rf5+ {[%emt 0:00:02]} 25. Ke4 {[%emt 0:00:04]} Rxf2 {[%emt 0:00:02]} 26. Rac1 {
[%emt 0:00:08]} Rxh2 {[%emt 0:00:02]} 27. Re3 {[%emt 0:00:03]} Re8+ {[%emt 0:
00:03]} 28. Kd4 {[%emt 0:00:02]} Rxe3 {[%emt 0:00:01]} 29. Kxe3 {[%emt 0:00:01]
} Rxh3+ {[%emt 0:00:00]} 30. Kd2 {[%emt 0:00:01]} Rh2+ {[%emt 0:00:03]} 31. Kc3
{[%emt 0:00:05]} Rh5 {[%emt 0:00:03]} 32. Rf1 {[%emt 0:00:01]} Kg7 {[%emt 0:00:
03]} 33. b4 {[%emt 0:00:03]} Re5 {[%emt 0:00:03]} 34. d4 {[%emt 0:00:03]} Rd5 {
[%emt 0:00:02]} 35. Rf4 {[%emt 0:00:07]} g5 {[%emt 0:00:03]} 36. Rg4 {[%emt 0:
00:01]} h5 {[%emt 0:00:03]} 37. Rg1 {[%emt 0:00:02]} h4 {[%emt 0:00:03]} 38.
Rh1 {[%emt 0:00:00]} Kh6 {[%emt 0:00:03]} 39. Kd3 {[%emt 0:00:01]} Kh5 {
[%emt 0:00:02]} 40. c4 {[%emt 0:00:03]} Rf5 {[%emt 0:00:03]} 41. Ke4 {[%emt 0:
00:07]} Kg4 $4 {[%emt 0:00:03]} 42. d5 {[%emt 0:00:03]} cxd5+ {[%emt 0:00:02]}
43. cxd5 {[%emt 0:00:01]} Rf4+ {[%emt 0:00:03]} 44. Ke5 {[%emt 0:00:02]} Rxb4 {
[%emt 0:00:03]} 45. d6 {[%emt 0:00:01]} h3 {[%emt 0:00:05]} 46. d7 {[%emt 0:00:
02]} Kg3 {[%emt 0:00:03]} 47. d8=Q {[%emt 0:00:02]} Kg2 {[%emt 0:00:04]} 48.
Qd1 {[%emt 0:00:02]} h2 {[%emt 0:00:08]} 49. Rf1 {[%emt 0:00:08]} Rh4 {[%emt 0:
00:05]} 50. Qe2+ {[%emt 0:00:03]} Kg3 {[%emt 0:00:04]} 51. Rf3+ {[%emt 0:00:01]
} Kg4 {[%emt 0:00:02]} 52. Qe4+ {[%emt 0:00:05]} Kh5 {[%emt 0:00:01]} 53. Qh7+
{[%emt 0:00:01]} Kg4 {[%emt 0:00:02]} 54. Qxf7 {[%emt 0:00:10]} h1=Q {[%emt 0:
00:03]} 55. Qf5+ {[%emt 0:00:01]} Kh5 {[%emt 0:00:02]} 56. Rd3 {[%emt 0:00:09]}
Qe1+ {[%emt 0:00:07]} 57. Kf6 {[%emt 0:00:04]} Qa1+ {[%emt 0:00:05]} 58. Kf7 {
[%emt 0:00:06]} Rf4 {[%emt 0:00:06]} 59. Rh3+ {[%emt 0:00:08]} Rh4 {[%emt 0:00:
06]} 60. Rxh4+ {[%emt 0:00:06]} Kxh4 {[%emt 0:00:01]} 61. Qh7+ {[%emt 0:00:02]}
Kg4 {[%emt 0:00:02]} 62. Qe4+ {[%emt 0:00:06]} Kg3 {[%emt 0:00:04]} 63. Kg6 {
[%emt 0:00:06]} g4 {[%emt 0:00:08]} 64. Kg5 {[%emt 0:00:03]} Qg7+ {[%emt 0:00:
01]} 65. Kf5 {[%emt 0:00:02]} Qh7+ {[%emt 0:00:03]} 66. Ke5 {[%emt 0:00:03]}
Qxe4+ {[%emt 0:00:01]} 67. Kxe4 {[%emt 0:00:01]} Kh3 {[%emt 0:00:01]} 68. Ke3 {
[%emt 0:00:01]} Kh2 {[%emt 0:00:03]} 69. Kf2 {[%emt 0:00:01]} g3+ {[%emt 0:00:
01]} 70. Kf1 {[%emt 0:00:01]} g2+ {[%emt 0:00:01]} 71. Kf2 {[%emt 0:00:00]}
g1=Q+ {[%emt 0:00:01] TallSnazzyBall won by resignation} 0-1

[Event "Fast Chess"]
[Site "ChessKid.com"]
[Date "2020.05.11"]
[Round "2"]
[White "Li, Patrick"]
[Black "Li, Tobias"]
[Result "1-0"]
[ECO "C50"]
[WhiteElo "1236"]
[BlackElo "1402"]
[PlyCount "137"]
[EventDate "2020.??.??"]
[TimeControl "600"]
[WhiteClock "0:02:46"]
[BlackClock "0:03:21"]

1. e4 {[%emt 0:00:02]} e5 {[%emt 0:00:01]} 2. Nf3 {[%emt 0:00:01]} Nc6 {
[%emt 0:00:01]} 3. Nc3 {[%emt 0:00:01]} Bc5 {[%emt 0:00:01]} 4. Bc4 {[%emt 0:
00:04]} Nf6 {[%emt 0:00:01]} 5. h3 {[%emt 0:00:03]} O-O {[%emt 0:00:01]} 6. O-O
{[%emt 0:00:03]} d6 {[%emt 0:00:03]} 7. d3 {[%emt 0:00:04]} Be6 {[%emt 0:00:09]
} 8. Bd5 {[%emt 0:00:05]} Rb8 {[%emt 0:00:15]} 9. Bxe6 {[%emt 0:00:03]} fxe6 {
[%emt 0:00:03]} 10. Ng5 {[%emt 0:00:03]} h6 {[%emt 0:00:04]} 11. Nxe6 {[%emt 0:
00:02]} Qe7 {[%emt 0:00:01]} 12. Nxf8 {[%emt 0:00:01]} Qxf8 {[%emt 0:00:01]}
13. Qd2 {[%emt 0:00:08]} Nd7 {[%emt 0:00:07]} 14. g3 {[%emt 0:00:03]} Re8 {
[%emt 0:00:11]} 15. Nd5 {[%emt 0:00:08]} Rc8 {[%emt 0:00:05]} 16. Qc3 {[%emt 0:
00:13]} a6 {[%emt 0:00:04]} 17. Qc4 {[%emt 0:00:08]} Kh8 {[%emt 0:00:09]} 18.
Be3 {[%emt 0:00:16]} Nb6 {[%emt 0:00:09]} 19. Qb3 {[%emt 0:00:08]} Nxd5 {
[%emt 0:00:06]} 20. Qxd5 {[%emt 0:00:05]} Ba7 {[%emt 0:00:27]} 21. Bxa7 {
[%emt 0:00:04]} Nxa7 {[%emt 0:00:03]} 22. Qxb7 {[%emt 0:00:02]} Nb5 {[%emt 0:
00:13]} 23. Qxa6 {[%emt 0:00:05]} Nd4 {[%emt 0:00:01]} 24. Rac1 {[%emt 0:00:08]
} Ra8 {[%emt 0:00:17]} 25. Qc4 {[%emt 0:00:09]} Qc8 {[%emt 0:00:08]} 26. c3 {
[%emt 0:00:12]} Ne6 {[%emt 0:00:06]} 27. d4 {[%emt 0:00:05]} exd4 {[%emt 0:00:
02]} 28. cxd4 {[%emt 0:00:03]} Ng5 {[%emt 0:00:02]} 29. h4 {[%emt 0:00:05]}
Nxe4 {[%emt 0:00:06]} 30. Qxc7 {[%emt 0:00:10]} Qh3 {[%emt 0:00:08]} 31. Qc6 {
[%emt 0:00:15]} Nd2 {[%emt 0:00:21]} 32. Qxa8+ {[%emt 0:00:06]} Kh7 {[%emt 0:
00:01]} 33. Rfd1 {[%emt 0:00:04]} g5 {[%emt 0:00:46]} 34. hxg5 {[%emt 0:00:16]}
hxg5 {[%emt 0:00:04]} 35. Rxd2 {[%emt 0:00:11]} Qe6 {[%emt 0:00:04]} 36. Qa7+ {
[%emt 0:00:06]} Kg6 {[%emt 0:00:03]} 37. d5 {[%emt 0:00:05]} Qg4 {[%emt 0:00:
20]} 38. Rb1 {[%emt 0:00:14]} Qe4 {[%emt 0:00:11]} 39. b4 {[%emt 0:00:05]}
Qxb1+ {[%emt 0:00:04]} 40. Kg2 {[%emt 0:00:04]} Qe4+ {[%emt 0:00:02]} 41. Kf1 {
[%emt 0:00:04]} Qxb4 {[%emt 0:00:04]} 42. Rd4 {[%emt 0:00:04]} Qb1+ {[%emt 0:
00:03]} 43. Kg2 {[%emt 0:00:02]} Qb2 {[%emt 0:00:10]} 44. Kh2 {[%emt 0:00:07]}
Qxf2+ {[%emt 0:00:04]} 45. Kh3 {[%emt 0:00:05]} Qf5+ {[%emt 0:00:04]} 46. Kg2 {
[%emt 0:00:02]} Qc2+ {[%emt 0:00:02]} 47. Kh3 {[%emt 0:00:03]} Qf5+ {[%emt 0:
00:02]} 48. Kh2 {[%emt 0:00:01]} Qc2+ {[%emt 0:00:01]} 49. Kh3 {[%emt 0:00:03]}
Qc3 {[%emt 0:00:07]} 50. Rg4 {[%emt 0:00:12]} Qe5 {[%emt 0:00:13]} 51. Qd4 {
[%emt 0:00:07]} Qe7 {[%emt 0:00:12]} 52. Qd2 {[%emt 0:00:13]} Qh7+ {[%emt 0:00:
06]} 53. Kg2 {[%emt 0:00:02]} Qh5 {[%emt 0:00:07]} 54. Qe2 {[%emt 0:00:15]} Qh8
{[%emt 0:00:15]} 55. Qe3 {[%emt 0:00:06]} Qh5 {[%emt 0:00:04]} 56. Qf3 {
[%emt 0:00:05]} Qh8 {[%emt 0:00:06]} 57. a4 {[%emt 0:00:07]} Qa8 {[%emt 0:00:
06]} 58. Qe3 {[%emt 0:00:05]} Qd8 {[%emt 0:00:06]} 59. a5 {[%emt 0:00:10]} Qxa5
{[%emt 0:00:05]} 60. Qxg5+ {[%emt 0:00:04]} Kf7 {[%emt 0:00:02]} 61. Rf4+ {
[%emt 0:00:08]} Ke8 {[%emt 0:00:03]} 62. Re4+ {[%emt 0:00:05]} Kd7 {[%emt 0:00:
02]} 63. Qg7+ {[%emt 0:00:03]} Kc8 {[%emt 0:00:01]} 64. Qg8+ {[%emt 0:00:03]}
Kd7 {[%emt 0:00:02]} 65. Qe6+ {[%emt 0:00:03]} Kd8 {[%emt 0:00:04]} 66. Qe8+ {
[%emt 0:00:02]} Kc7 {[%emt 0:00:01]} 67. Qe7+ {[%emt 0:00:03]} Kc8 {[%emt 0:00:
04]} 68. Qf8+ {[%emt 0:00:06]} Kd7 {[%emt 0:00:01]} 69. Re7# {[%emt 0:00:03]
WideClassyQuiz won by checkmate} 1-0

[Event "Fast Chess"]
[Site "ChessKid.com"]
[Date "2020.05.11"]
[Round "3"]
[White "Horvath, Alexander"]
[Black "Halimi, Dorian"]
[Result "1-0"]
[ECO "C50"]
[WhiteElo "1325"]
[BlackElo "1241"]
[PlyCount "69"]
[EventDate "2020.??.??"]
[TimeControl "600"]
[WhiteClock "0:06:42"]
[BlackClock "0:07:50"]

1. e4 {[%emt 0:00:03]} e5 {[%emt 0:00:01]} 2. Nf3 {[%emt 0:00:04]} Nc6 {
[%emt 0:00:01]} 3. Bc4 {[%emt 0:00:02]} h6 {[%emt 0:00:01]} 4. Nc3 {[%emt 0:00:
02]} a6 {[%emt 0:00:01]} 5. d3 {[%emt 0:00:01]} d6 {[%emt 0:00:06]} 6. Be3 {
[%emt 0:00:01]} Nf6 {[%emt 0:00:04]} 7. Qd2 {[%emt 0:00:01]} Qe7 {[%emt 0:00:
15]} 8. a3 {[%emt 0:00:02]} Be6 {[%emt 0:00:01]} 9. h3 {[%emt 0:00:04]} Bxc4 {
[%emt 0:00:02]} 10. dxc4 {[%emt 0:00:02]} Qe6 {[%emt 0:00:11]} 11. Nd5 {
[%emt 0:00:02]} Nxd5 {[%emt 0:00:09]} 12. cxd5 {[%emt 0:00:00]} Qd7 {[%emt 0:
00:10]} 13. dxc6 {[%emt 0:00:02]} Qxc6 {[%emt 0:00:01]} 14. c3 {[%emt 0:00:05]}
O-O-O {[%emt 0:00:01]} 15. O-O {[%emt 0:00:02]} Be7 {[%emt 0:00:02]} 16. b4 {
[%emt 0:00:05]} b5 {[%emt 0:00:04]} 17. Qd5 {[%emt 0:00:06]} Qxc3 {[%emt 0:00:
09]} 18. Qa8+ {[%emt 0:00:09]} Kd7 {[%emt 0:00:03]} 19. Qxa6 {[%emt 0:00:03]}
Qd3 {[%emt 0:00:15]} 20. Rfd1 {[%emt 0:00:09]} Qc4 {[%emt 0:00:07]} 21. Rac1 {
[%emt 0:00:12]} Qxe4 {[%emt 0:00:03]} 22. Qxb5+ {[%emt 0:00:03]} c6 {[%emt 0:
00:04]} 23. Qb7+ {[%emt 0:00:04]} Ke6 {[%emt 0:00:03]} 24. Qxc6 {[%emt 0:00:06]
} Qf5 {[%emt 0:00:18]} 25. Qd5+ {[%emt 0:00:07]} Kf6 {[%emt 0:00:08]} 26. g4 {
[%emt 0:00:05]} Qd7 {[%emt 0:00:14]} 27. h4 {[%emt 0:00:05]} Rc8 {[%emt 0:00:
07]} 28. g5+ {[%emt 0:00:03]} hxg5 {[%emt 0:00:03]} 29. hxg5+ {[%emt 0:00:01]}
Kg6 {[%emt 0:00:01]} 30. Qe4+ {[%emt 0:00:04]} Kh5 {[%emt 0:00:13]} 31. Qh4+ {
[%emt 0:00:04]} Kg6 {[%emt 0:00:05]} 32. Qe4+ {[%emt 0:00:06]} Kh5 {[%emt 0:00:
03]} 33. Rxc8 {[%emt 0:00:01]} Rxc8 {[%emt 0:00:08]} 34. Qh7+ {[%emt 0:00:03]}
Kg4 {[%emt 0:00:03]} 35. Nh2# {[%emt 0:00:02] KeenOrangeTeeth won by checkmate}
1-0

[Event "Fast Chess"]
[Site "ChessKid.com"]
[Date "2020.05.12"]
[Round "1"]
[White "Li, Tobias"]
[Black "Dai, Lana"]
[Result "0-1"]
[ECO "C42"]
[WhiteElo "1387"]
[BlackElo "1274"]
[Annotator "Qualitätsopfer mit HInlenkung"]
[PlyCount "49"]
[EventDate "2020.??.??"]
[TimeControl "900"]
[WhiteClock "0:10:14"]
[BlackClock "0:12:59"]

1. e4 {[%emt 0:00:13]} e5 {[%emt 0:00:03]} 2. Nf3 {[%emt 0:00:02]} Nf6 {
[%emt 0:00:03]} 3. Nxe5 {[%emt 0:00:03]} Qe7 {[%emt 0:00:01]} 4. Nf3 {[%emt 0:
00:01]} Qxe4+ {[%emt 0:00:06]} 5. Qe2 {[%emt 0:00:02]} Qxe2+ {[%emt 0:00:01]}
6. Bxe2 {[%emt 0:00:03]} Bc5 {[%emt 0:00:09]} 7. d4 {[%emt 0:00:04]} Bd6 {
[%emt 0:00:08]} 8. O-O {[%emt 0:00:02]} O-O {[%emt 0:00:04]} 9. h3 {[%emt 0:00:
03]} Nc6 {[%emt 0:00:05]} 10. Bg5 {[%emt 0:00:02]} Be7 {[%emt 0:00:06]} 11. Nc3
{[%emt 0:00:06]} d6 {[%emt 0:00:11]} 12. Rfe1 {[%emt 0:00:13]} h6 {[%emt 0:00:
04]} 13. Bh4 {[%emt 0:00:06]} g5 {[%emt 0:00:12]} 14. Bg3 {[%emt 0:00:03]} g4 {
[%emt 0:00:11]} 15. hxg4 {[%emt 0:00:03]} Bxg4 {[%emt 0:00:01]} 16. Nd2 {
[%emt 0:00:01]} Bxe2 {[%emt 0:00:08]} 17. Rxe2 {[%emt 0:00:02]} Rfe8 {[%emt 0:
00:06]} 18. Bh4 {[%emt 0:00:03]} Nxd4 {[%emt 0:00:25]} 19. Re3 $4 {[%emt 0:00:
09]} Ng4 {[%emt 0:00:17]} 20. Re4 {[%emt 0:00:11]} Bxh4 {[%emt 0:01:57]} 21.
Rxd4 {[%emt 0:00:08]} Bxf2+ {[%emt 0:00:08]} 22. Kf1 {[%emt 0:00:03]} Bxd4 {
[%emt 0:00:04]} 23. Nf3 {[%emt 0:00:08]} Ne3+ {[%emt 0:00:10]} 24. Kf2 {
[%emt 0:00:04]} Nxc2+ {[%emt 0:00:06]} 25. Nxd4 {[%emt 0:00:08] TopBrownCave
won by resignation} 0-1

[Event "Fast Chess"]
[Site "ChessKid.com"]
[Date "2020.05.12"]
[Round "1"]
[White "Halimi, Dorian"]
[Black "Li, Patrick"]
[Result "0-1"]
[ECO "C20"]
[WhiteElo "1246"]
[BlackElo "1311"]
[PlyCount "40"]
[EventDate "2020.??.??"]
[TimeControl "900"]
[WhiteClock "0:13:38"]
[BlackClock "0:14:03"]

1. e4 {[%emt 0:00:02]} e5 {[%emt 0:00:02]} 2. Qh5 {[%emt 0:00:02]} Nc6 {
[%emt 0:00:02]} 3. Bc4 {[%emt 0:00:02]} g6 {[%emt 0:00:00]} 4. Qf3 {[%emt 0:00:
01]} Nf6 {[%emt 0:00:01]} 5. Nh3 {[%emt 0:00:01]} Nd4 {[%emt 0:00:03]} 6. Qd3 {
[%emt 0:00:03]} Bb4 {[%emt 0:00:05]} 7. Ng5 {[%emt 0:00:02]} O-O {[%emt 0:00:
04]} 8. Nxf7 {[%emt 0:00:01]} Rxf7 {[%emt 0:00:03]} 9. Bxf7+ {[%emt 0:00:01]}
Kxf7 {[%emt 0:00:02]} 10. Qc4+ {[%emt 0:00:03]} Kf8 {[%emt 0:00:02]} 11. Qd3 {
[%emt 0:00:08]} b5 {[%emt 0:00:02]} 12. c3 {[%emt 0:00:01]} Ne6 {[%emt 0:00:10]
} 13. cxb4 {[%emt 0:00:02]} Ng4 {[%emt 0:00:08]} 14. Qd5 {[%emt 0:00:08]} Ba6 {
[%emt 0:00:12]} 15. Nc3 {[%emt 0:00:04]} Qf6 {[%emt 0:00:07]} 16. Qxa8+ {
[%emt 0:00:05]} Ke7 {[%emt 0:00:03]} 17. Qxa7 {[%emt 0:00:04]} Qxf2+ {[%emt 0:
00:05]} 18. Kd1 {[%emt 0:00:01]} Qxa7 {[%emt 0:00:03]} 19. Nd5+ {[%emt 0:00:05]
} Kd6 {[%emt 0:00:04]} 20. d3 {[%emt 0:00:02]} Nf2+ {[%emt 0:00:05]
WideClassyQuiz won by resignation} 0-1

[Event "Fast Chess"]
[Site "ChessKid.com"]
[Date "2020.05.12"]
[Round "2"]
[White "Halimi, Dorian"]
[Black "Li, Tobias"]
[Result "0-1"]
[ECO "C20"]
[WhiteElo "1241"]
[BlackElo "1392"]
[Annotator "Abwehren Doppelangriff"]
[PlyCount "98"]
[EventDate "2020.??.??"]
[TimeControl "900"]
[WhiteClock "0:10:00"]
[BlackClock "0:11:13"]

1. e4 {[%emt 0:00:01]} e5 {[%emt 0:00:02]} 2. Qh5 {[%emt 0:00:02]} Nc6 {
[%emt 0:00:02]} 3. Bc4 {[%emt 0:00:02]} g6 {[%emt 0:00:02]} 4. Qf3 {[%emt 0:00:
01]} Nf6 {[%emt 0:00:02]} 5. Nh3 {[%emt 0:00:01]} Nd4 {[%emt 0:00:05]} 6. Qd3 {
[%emt 0:00:05]} Bc5 {[%emt 0:00:06]} 7. Ng5 {[%emt 0:00:06]} O-O {[%emt 0:00:
04]} 8. Nxf7 {[%emt 0:00:01]} Rxf7 {[%emt 0:00:01]} 9. Bxf7+ {[%emt 0:00:01]}
Kxf7 {[%emt 0:00:00]} 10. Qc4+ {[%emt 0:00:02]} Kf8 $4 {[%emt 0:00:02]} (10...
Ne6 $1) 11. Qxc5+ {[%emt 0:00:01]} Qe7 {[%emt 0:00:04]} 12. Qxc7 {[%emt 0:00:
05]} Nxe4 {[%emt 0:00:11]} 13. O-O {[%emt 0:00:03]} Kg8 {[%emt 0:00:07]} 14.
Nc3 {[%emt 0:00:04]} Nxc2 {[%emt 0:00:04]} 15. Rb1 {[%emt 0:00:06]} Kf8 {
[%emt 0:00:10]} 16. Nd5 {[%emt 0:00:02]} Qf7 {[%emt 0:00:10]} 17. Qxc2 {
[%emt 0:00:06]} Qxd5 {[%emt 0:00:07]} 18. Re1 {[%emt 0:00:01]} Ng5 {[%emt 0:00:
08]} 19. h3 {[%emt 0:00:03]} Qxa2 {[%emt 0:00:04]} 20. Rxe5 {[%emt 0:00:05]}
Nf7 {[%emt 0:00:05]} 21. Qc5+ {[%emt 0:00:12]} d6 {[%emt 0:00:04]} 22. Qc2 {
[%emt 0:00:21]} dxe5 {[%emt 0:00:04]} 23. d3 {[%emt 0:00:02]} Be6 {[%emt 0:00:
23]} 24. Be3 {[%emt 0:00:14]} Rc8 {[%emt 0:00:05]} 25. Qd1 {[%emt 0:00:08]} Bb3
{[%emt 0:00:11]} 26. Qe1 {[%emt 0:00:09]} Kg7 {[%emt 0:00:09]} 27. Ra1 {
[%emt 0:00:03]} Qxb2 {[%emt 0:00:07]} 28. Bxa7 {[%emt 0:00:04]} Qc3 {[%emt 0:
00:12]} 29. Qf1 {[%emt 0:00:10]} Rd8 {[%emt 0:00:11]} 30. Rc1 {[%emt 0:00:03]}
Qxd3 {[%emt 0:00:10]} 31. Qxd3 {[%emt 0:00:05]} Rxd3 {[%emt 0:00:02]} 32. Be3 {
[%emt 0:00:08]} Rd8 {[%emt 0:00:06]} 33. Rc7 {[%emt 0:00:04]} Bd5 {[%emt 0:00:
03]} 34. Kh2 {[%emt 0:00:06]} Bc6 {[%emt 0:00:03]} 35. g4 {[%emt 0:00:03]} Kf6
{[%emt 0:00:11]} 36. Kg3 {[%emt 0:00:01]} Nd6 {[%emt 0:00:06]} 37. h4 {[%emt 0:
00:04]} Nb5 {[%emt 0:00:03]} 38. Bg5+ {[%emt 0:00:04]} Ke6 {[%emt 0:00:02]} 39.
Rxh7 {[%emt 0:00:08]} Rd3+ {[%emt 0:00:09]} 40. Be3 {[%emt 0:00:03]} Kf6 {
[%emt 0:00:12]} 41. h5 {[%emt 0:00:05]} gxh5 {[%emt 0:00:04]} 42. Rxh5 {
[%emt 0:00:01]} Kg6 {[%emt 0:00:02]} 43. f4 {[%emt 0:00:02]} exf4+ {[%emt 0:00:
02]} 44. Kxf4 {[%emt 0:00:02]} Ra3 {[%emt 0:00:11]} 45. Rf5 {[%emt 0:00:05]}
Nd6 {[%emt 0:00:06]} 46. Rc5 {[%emt 0:00:08]} Ra4+ {[%emt 0:00:04]} 47. Ke5 {
[%emt 0:00:04]} Nf7+ {[%emt 0:00:06]} 48. Ke6 {[%emt 0:00:02]} Re4+ {[%emt 0:
00:12]} 49. Re5 {[%emt 0:00:09]} Rxe5# {[%emt 0:00:05] OnlyHungryKiwi won by
checkmate} 0-1